[Event "Early-Titled-Tuesday-Blitz-January-16-2024"]
[Site "Chess.com"]
[Date "2024.01.16"]
[Round "8"]
[White "Zhigalko_Sergei"]
[Black "Bigfish1995"]
[Result "0-1"]
[WhiteElo "2961"]
[BlackElo "3049"]
[TimeControl "180+1"]
[EndTime "9:33:19 PST"]
[Termination "Bigfish1995 won on time"]

1. e4 {[%clk 0:03:00.9]} 1... c6 {[%clk 0:02:56.3]} 2. d4 {[%clk 0:03:01.1]}
2... d5 {[%clk 0:02:56.6]} 3. e5 {[%clk 0:03:01.8]} 3... Bf5 {[%clk 0:02:55.9]}
4. Nf3 {[%clk 0:03:02.7]} 4... e6 {[%clk 0:02:55.3]} 5. Be2 {[%clk 0:03:03.4]}
5... Nd7 {[%clk 0:02:52.3]} 6. O-O {[%clk 0:03:03.6]} 6... a5 {[%clk 0:02:52.1]}
7. Nbd2 {[%clk 0:02:57.1]} 7... a4 {[%clk 0:02:51.2]} 8. Re1 {[%clk 0:02:56.9]}
8... a3 {[%clk 0:02:48.6]} 9. c4 {[%clk 0:02:37.1]} 9... axb2 {[%clk 0:02:41.4]}
10. Bxb2 {[%clk 0:02:37.2]} 10... Bb4 {[%clk 0:01:58.7]} 11. Qb3 {[%clk
0:01:39.4]} 11... Qa5 {[%clk 0:01:58.2]} 12. cxd5 {[%clk 0:01:39.9]} 12... exd5
{[%clk 0:01:57.5]} 13. Bd3 {[%clk 0:01:35.1]} 13... Bxd3 {[%clk 0:01:56]} 14.
Qxd3 {[%clk 0:01:35.1]} 14... Nf8 {[%clk 0:01:55.9]} 15. a3 {[%clk 0:01:05.2]}
15... Bxd2 {[%clk 0:01:54.7]} 16. Nxd2 {[%clk 0:01:06.1]} 16... Ne6 {[%clk
0:01:54]} 17. Bc3 {[%clk 0:01:03.4]} 17... Qa6 {[%clk 0:01:51.2]} 18. Qh3 {[%clk
0:00:49.6]} 18... Ne7 {[%clk 0:01:48.2]} 19. Bb4 {[%clk 0:00:49.7]} 19... Ng6
{[%clk 0:01:42.7]} 20. Nf3 {[%clk 0:00:47]} 20... h6 {[%clk 0:01:22.6]} 21. Qf5
{[%clk 0:00:44.8]} 21... b6 {[%clk 0:01:05.7]} 22. Rac1 {[%clk 0:00:42.5]} 22...
Qb7 {[%clk 0:01:04.4]} 23. h4 {[%clk 0:00:40.3]} 23... Rc8 {[%clk 0:00:54.7]}
24. Bd6 {[%clk 0:00:39.1]} 24... Ne7 {[%clk 0:00:51.7]} 25. Qg4 {[%clk
0:00:22.1]} 25... O-O {[%clk 0:00:47.4]} 26. h5 {[%clk 0:00:22.2]} 26... c5
{[%clk 0:00:37.2]} 27. dxc5 {[%clk 0:00:21.9]} 27... bxc5 {[%clk 0:00:37.2]} 28.
Nh4 {[%clk 0:00:21.2]} 28... Rfd8 {[%clk 0:00:35.3]} 29. Bxe7 {[%clk 0:00:13.1]}
29... Qxe7 {[%clk 0:00:34.9]} 30. Nf5 {[%clk 0:00:13.9]} 30... Qg5 {[%clk
0:00:25.5]} 31. Qxg5 {[%clk 0:00:14.1]} 31... hxg5 {[%clk 0:00:26.4]} 32. Ne7+
{[%clk 0:00:14.9]} 32... Kf8 {[%clk 0:00:27]} 33. Nxc8 {[%clk 0:00:15.8]} 33...
Rxc8 {[%clk 0:00:27.7]} 34. Red1 {[%clk 0:00:05.5]} 34... d4 {[%clk 0:00:27.5]}
35. Rc4 {[%clk 0:00:05.3]} 35... Ke7 {[%clk 0:00:26.6]} 36. Rb1 {[%clk
0:00:04.9]} 36... Kd7 {[%clk 0:00:22]} 37. Rb7+ {[%clk 0:00:04.1]} 37... Kc6
{[%clk 0:00:22.3]} 38. Rxf7 {[%clk 0:00:04.4]} 38... Kd5 {[%clk 0:00:22.9]} 39.
Rc1 {[%clk 0:00:04.7]} 39... c4 {[%clk 0:00:17.1]} 40. Rd7+ {[%clk 0:00:04.9]}
40... Kc5 {[%clk 0:00:17.5]} 41. Re7 {[%clk 0:00:03]} 41... Nf4 {[%clk
0:00:16.9]} 42. Kf1 {[%clk 0:00:03]} 42... d3 {[%clk 0:00:15.7]} 43. Rd7 {[%clk
0:00:02.5]} 43... Nd5 {[%clk 0:00:13.8]} 44. e6 {[%clk 0:00:02]} 44... Re8
{[%clk 0:00:13.3]} 45. e7 {[%clk 0:00:01.5]} 45... Rxe7 {[%clk 0:00:13.2]} 46.
Rd8 {[%clk 0:00:02]} 46... Rc7 {[%clk 0:00:13]} 47. g3 {[%clk 0:00:01.3]} 47...
d2 {[%clk 0:00:12.5]} 48. Rd1 {[%clk 0:00:01.5]} 48... c3 {[%clk 0:00:13.1]} 49.
Ke2 {[%clk 0:00:02.1]} 49... c2 {[%clk 0:00:13.2]} 50. Kxd2 {[%clk 0:00:01.7]}
50... cxd1=Q+ {[%clk 0:00:13.8]} 51. Kxd1 {[%clk 0:00:02.6]} 51... Kd4 {[%clk
0:00:13.9]} 52. Kd2 {[%clk 0:00:02.6]} 52... Ke4 {[%clk 0:00:13.7]} 53. Ke2
{[%clk 0:00:02.5]} 53... Nf6 {[%clk 0:00:13.3]} 54. Rf8 {[%clk 0:00:01.6]} 54...
Nxh5 {[%clk 0:00:12.7]} 55. Kf1 {[%clk 0:00:01.7]} 55... Nf6 {[%clk 0:00:12.7]}
56. Kg2 {[%clk 0:00:01.3]} 56... Ra7 {[%clk 0:00:12.6]} 0-1

[Event "Early-Titled-Tuesday-Blitz-January-16-2024"]
[Site "Chess.com"]
[Date "2024.01.16"]
[Round "8"]
[White "Schachmalanders"]
[Black "Marcin"]
[Result "1-0"]
[WhiteElo "2468"]
[BlackElo "2484"]
[TimeControl "180+1"]
[EndTime "9:33:19 PST"]
[Termination "Schachmalanders won by resignation"]

1. e4 {[%clk 0:03:00.9]} 1... e5 {[%clk 0:02:55.4]} 2. Nf3 {[%clk 0:03:00.5]}
2... Nc6 {[%clk 0:02:55]} 3. Nc3 {[%clk 0:03:00.9]} 3... Nf6 {[%clk 0:02:54.3]}
4. d4 {[%clk 0:03:01.2]} 4... exd4 {[%clk 0:02:54.9]} 5. Nxd4 {[%clk 0:03:02.1]}
5... Nxe4 {[%clk 0:02:50.3]} 6. Nxe4 {[%clk 0:02:55.6]} 6... Qe7 {[%clk
0:02:49.2]} 7. Nxc6 {[%clk 0:02:49.2]} 7... Qxe4+ {[%clk 0:02:46]} 8. Be2 {[%clk
0:02:49.9]} 8... dxc6 {[%clk 0:02:33]} 9. O-O {[%clk 0:02:49.3]} 9... Be7 {[%clk
0:02:33.5]} 10. Bf3 {[%clk 0:02:47]} 10... Qh4 {[%clk 0:02:30]} 11. Re1 {[%clk
0:02:46.6]} 11... Be6 {[%clk 0:02:29.8]} 12. g3 {[%clk 0:02:45.2]} 12... Qf6
{[%clk 0:02:29.4]} 13. h4 {[%clk 0:02:43.2]} 13... h6 {[%clk 0:02:28.1]} 14. Bf4
{[%clk 0:02:43.1]} 14... Rd8 {[%clk 0:02:17.9]} 15. Qe2 {[%clk 0:02:40.1]} 15...
Bd6 {[%clk 0:02:11.7]} 16. Bd2 {[%clk 0:02:26.6]} 16... O-O {[%clk 0:02:00.3]}
17. Bc3 {[%clk 0:02:26]} 17... Qg6 {[%clk 0:01:55.2]} 18. h5 {[%clk 0:02:20.7]}
18... Qg5 {[%clk 0:01:47.2]} 19. Bd2 {[%clk 0:02:19.8]} 19... Qe5 {[%clk
0:01:30.1]} 20. Qxe5 {[%clk 0:02:10.1]} 20... Bxe5 {[%clk 0:01:30.2]} 21. Bb4
{[%clk 0:01:53.2]} 21... Bd6 {[%clk 0:01:21.6]} 22. Bc3 {[%clk 0:01:52.9]} 22...
Bc5 {[%clk 0:01:20]} 23. Kg2 {[%clk 0:01:50.9]} 23... Rd7 {[%clk 0:01:19.1]} 24.
a4 {[%clk 0:01:50.6]} 24... a6 {[%clk 0:01:16.2]} 25. b4 {[%clk 0:01:49.8]}
25... Bd4 {[%clk 0:01:14.8]} 26. Ra3 {[%clk 0:01:43.6]} 26... Rfd8 {[%clk
0:01:12.9]} 27. b5 {[%clk 0:01:43.7]} 27... axb5 {[%clk 0:01:06.9]} 28. axb5
{[%clk 0:01:43.4]} 28... cxb5 {[%clk 0:01:05.1]} 29. Bxb7 {[%clk 0:01:43.4]}
29... b4 {[%clk 0:00:51.5]} 30. Bxb4 {[%clk 0:01:38.5]} 30... Rb8 {[%clk
0:00:52.1]} 31. Bc6 {[%clk 0:01:31.5]} 31... Rxb4 {[%clk 0:00:47.3]} 32. Rxe6
{[%clk 0:01:31.7]} 32... fxe6 {[%clk 0:00:31.2]} 33. Bxd7 {[%clk 0:01:30.4]}
33... Rb6 {[%clk 0:00:30.7]} 34. Be8 {[%clk 0:01:26.8]} 34... Kf8 {[%clk
0:00:29.5]} 35. Ra8 {[%clk 0:01:26.2]} 35... Ke7 {[%clk 0:00:29.7]} 36. Bg6
{[%clk 0:01:26]} 36... c5 {[%clk 0:00:19.7]} 37. Ra7+ {[%clk 0:01:21.9]} 37...
Kd6 {[%clk 0:00:18.7]} 38. Ra8 {[%clk 0:01:11]} 38... Rb2 {[%clk 0:00:17.8]} 39.
Rd8+ {[%clk 0:01:09.2]} 39... Kc7 {[%clk 0:00:14.8]} 40. Re8 {[%clk 0:01:08.1]}
40... Kd6 {[%clk 0:00:14.3]} 41. Rg8 {[%clk 0:01:03.4]} 41... Ra2 {[%clk
0:00:13.8]} 42. Re8 {[%clk 0:01:01.3]} 42... Ra1 {[%clk 0:00:13.4]} 43. Bf7
{[%clk 0:00:59.8]} 43... Re1 {[%clk 0:00:13.1]} 44. Kf3 {[%clk 0:00:58.8]} 44...
Kd7 {[%clk 0:00:12]} 45. Ra8 {[%clk 0:00:57.6]} 45... Rf1 {[%clk 0:00:11.8]} 46.
Ra7+ {[%clk 0:00:56.2]} 46... Kd6 {[%clk 0:00:12.3]} 47. Ra6+ {[%clk 0:00:56.6]}
47... Ke7 {[%clk 0:00:12.8]} 48. Bxe6 {[%clk 0:00:56.4]} 48... Rxf2+ {[%clk
0:00:13.3]} 49. Kg4 {[%clk 0:00:55.5]} 49... Rxc2 {[%clk 0:00:12.4]} 50. Bd5
{[%clk 0:00:53.6]} 50... Re2 {[%clk 0:00:12.1]} 51. Ra7+ {[%clk 0:00:52]} 51...
Kd6 {[%clk 0:00:12.3]} 52. Bf3 {[%clk 0:00:52.2]} 52... Re5 {[%clk 0:00:11.8]}
53. Rxg7 {[%clk 0:00:48.2]} 53... c4 {[%clk 0:00:06.4]} 54. Rg6+ {[%clk
0:00:46.9]} 54... Kc5 {[%clk 0:00:05.7]} 55. Rxh6 {[%clk 0:00:46.6]} 55... c3
{[%clk 0:00:05.8]} 56. Rc6+ {[%clk 0:00:46.3]} 56... Kb4 {[%clk 0:00:06.3]} 57.
h6 {[%clk 0:00:47.1]} 57... Kb3 {[%clk 0:00:02.9]} 58. h7 {[%clk 0:00:45.8]}
58... Re7 {[%clk 0:00:03]} 59. Bd5+ {[%clk 0:00:41.6]} 59... Kb2 {[%clk
0:00:02.6]} 60. Rb6+ {[%clk 0:00:37.1]} 60... Kc1 {[%clk 0:00:02.8]} 61. Rb4
{[%clk 0:00:35.9]} 61... Rg7+ {[%clk 0:00:01.9]} 62. Kf5 {[%clk 0:00:35.6]}
62... Rxh7 {[%clk 0:00:01.7]} 63. Rxd4 {[%clk 0:00:35.2]} 63... c2 {[%clk
0:00:01.6]} 64. Be4 {[%clk 0:00:33.9]} 64... Rf7+ {[%clk 0:00:01.8]} 65. Ke6
{[%clk 0:00:33.1]} 65... Rf2 {[%clk 0:00:01.8]} 66. Rc4 {[%clk 0:00:32.8]} 66...
Kd1 {[%clk 0:00:01.8]} 67. Bxc2+ {[%clk 0:00:32.2]} 67... Rxc2 {[%clk
0:00:02.2]} 68. Rxc2 {[%clk 0:00:32.8]} 68... Kxc2 {[%clk 0:00:03.1]} 69. g4
{[%clk 0:00:33.5]} 1-0

[Event "Early-Titled-Tuesday-Blitz-January-16-2024"]
[Site "Chess.com"]
[Date "2024.01.16"]
[Round "8"]
[White "Matols"]
[Black "hongnhung1234"]
[Result "0-1"]
[WhiteElo "2394"]
[BlackElo "2578"]
[TimeControl "180+1"]
[EndTime "9:33:21 PST"]
[Termination "hongnhung1234 won by resignation"]

1. d4 {[%clk 0:03:00.9]} 1... f5 {[%clk 0:02:59.6]} 2. Nf3 {[%clk 0:02:59.1]}
2... Nf6 {[%clk 0:02:59.8]} 3. g3 {[%clk 0:02:59.2]} 3... g6 {[%clk 0:03:00.2]}
4. Bg2 {[%clk 0:02:59.7]} 4... Bg7 {[%clk 0:03:00.9]} 5. O-O {[%clk 0:02:59.7]}
5... O-O {[%clk 0:03:01.6]} 6. b3 {[%clk 0:02:58.1]} 6... d6 {[%clk 0:03:02.3]}
7. Bb2 {[%clk 0:02:57.5]} 7... Ne4 {[%clk 0:03:02.9]} 8. Nbd2 {[%clk 0:02:55.7]}
8... Nc6 {[%clk 0:03:02.2]} 9. c4 {[%clk 0:02:51.8]} 9... Nxd2 {[%clk
0:03:01.8]} 10. Qxd2 {[%clk 0:02:51.1]} 10... e5 {[%clk 0:03:02.4]} 11. dxe5
{[%clk 0:02:47.8]} 11... dxe5 {[%clk 0:03:03.3]} 12. Rfd1 {[%clk 0:02:46.7]}
12... Qxd2 {[%clk 0:02:34]} 13. Rxd2 {[%clk 0:02:47.6]} 13... e4 {[%clk
0:02:31.7]} 14. Bxg7 {[%clk 0:02:35.2]} 14... Kxg7 {[%clk 0:02:32.6]} 15. Nd4
{[%clk 0:02:29.7]} 15... Rd8 {[%clk 0:01:58.9]} 16. Rad1 {[%clk 0:02:28.5]}
16... Nxd4 {[%clk 0:01:59]} 17. Rxd4 {[%clk 0:02:29.4]} 17... Rxd4 {[%clk
0:01:59.5]} 18. Rxd4 {[%clk 0:02:30]} 18... Be6 {[%clk 0:02:00.1]} 19. f3 {[%clk
0:02:27.8]} 19... exf3 {[%clk 0:02:00.8]} 20. exf3 {[%clk 0:02:24.1]} 20... Re8
{[%clk 0:01:57.7]} 21. Kf2 {[%clk 0:02:22.5]} 21... Kf6 {[%clk 0:01:56.9]} 22.
f4 {[%clk 0:02:22.1]} 22... c6 {[%clk 0:01:55.2]} 23. Bf3 {[%clk 0:02:17.1]}
23... a5 {[%clk 0:01:51.1]} 24. Rd2 {[%clk 0:02:06]} 24... a4 {[%clk 0:01:47.8]}
25. Be2 {[%clk 0:01:52.2]} 25... Ra8 {[%clk 0:01:38.7]} 26. b4 {[%clk
0:01:50.1]} 26... a3 {[%clk 0:01:35.9]} 27. Ke3 {[%clk 0:01:44.1]} 27... Ra4
{[%clk 0:01:35.1]} 28. b5 {[%clk 0:01:33.9]} 28... cxb5 {[%clk 0:01:09]} 29.
cxb5 {[%clk 0:01:34.8]} 29... Re4+ {[%clk 0:01:09.1]} 30. Kf2 {[%clk 0:01:23.5]}
30... Rb4 {[%clk 0:01:09.2]} 31. Rd3 {[%clk 0:01:15.6]} 31... Rxb5 {[%clk
0:00:52.5]} 32. Rxa3 {[%clk 0:01:14]} 32... Rb2 {[%clk 0:00:53.2]} 33. Re3
{[%clk 0:00:54.6]} 33... Bxa2 {[%clk 0:00:49.7]} 34. Ke1 {[%clk 0:00:48]} 34...
Bd5 {[%clk 0:00:45.7]} 35. Re8 {[%clk 0:00:42]} 35... b5 {[%clk 0:00:40.1]} 36.
Rh8 {[%clk 0:00:41.1]} 36... b4 {[%clk 0:00:33.7]} 37. Rxh7 {[%clk 0:00:39.9]}
37... b3 {[%clk 0:00:32.1]} 38. Rh8 {[%clk 0:00:38.5]} 38... Rb1+ {[%clk
0:00:28.7]} 39. Kd2 {[%clk 0:00:37.2]} 39... Rh1 {[%clk 0:00:12.8]} 40. Kc3
{[%clk 0:00:33.5]} 40... Rc1+ {[%clk 0:00:09.1]} 41. Kd4 {[%clk 0:00:29]} 41...
b2 {[%clk 0:00:08.4]} 42. Rb8 {[%clk 0:00:27.2]} 42... b1=Q {[%clk 0:00:06.9]}
43. Rxb1 {[%clk 0:00:25.6]} 43... Rxb1 {[%clk 0:00:07.8]} 44. Kxd5 {[%clk
0:00:25.7]} 44... Rb2 {[%clk 0:00:08.7]} 45. Bf3 {[%clk 0:00:17.2]} 45... Rxh2
{[%clk 0:00:09.6]} 46. g4 {[%clk 0:00:16.3]} 46... fxg4 {[%clk 0:00:08.8]} 47.
Bxg4 {[%clk 0:00:17.2]} 47... Rh4 {[%clk 0:00:09.3]} 48. Be2 {[%clk 0:00:13.1]}
48... Rxf4 {[%clk 0:00:09.7]} 49. Bd3 {[%clk 0:00:13.2]} 49... g5 {[%clk
0:00:10]} 50. Be4 {[%clk 0:00:12.7]} 50... g4 {[%clk 0:00:10.3]} 51. Kd4 {[%clk
0:00:13.3]} 51... g3 {[%clk 0:00:09.2]} 52. Ke3 {[%clk 0:00:13.9]} 52... Kg5
{[%clk 0:00:09.9]} 53. Bd5 {[%clk 0:00:11.7]} 53... Rf8 {[%clk 0:00:08.6]} 54.
Bc6 {[%clk 0:00:11.1]} 54... Kh4 {[%clk 0:00:09.5]} 0-1

[Event "Early-Titled-Tuesday-Blitz-January-16-2024"]
[Site "Chess.com"]
[Date "2024.01.16"]
[Round "8"]
[White "Zheenbekov86"]
[Black "CrushingKings"]
[Result "1/2-1/2"]
[WhiteElo "2501"]
[BlackElo "2658"]
[TimeControl "180+1"]
[EndTime "9:33:23 PST"]
[Termination "Game drawn - insufficient material"]

1. d4 {[%clk 0:02:58.9]} 1... g6 {[%clk 0:02:58.8]} 2. Nf3 {[%clk 0:02:58.5]}
2... Bg7 {[%clk 0:02:59.7]} 3. g3 {[%clk 0:02:58.6]} 3... Nf6 {[%clk 0:02:59.3]}
4. Bg2 {[%clk 0:02:58.7]} 4... O-O {[%clk 0:03:00.2]} 5. O-O {[%clk 0:02:58.9]}
5... d6 {[%clk 0:03:01.1]} 6. c4 {[%clk 0:02:58.8]} 6... Nbd7 {[%clk 0:03:02]}
7. Nc3 {[%clk 0:02:58.6]} 7... c5 {[%clk 0:03:02.9]} 8. d5 {[%clk 0:02:52.3]}
8... Rb8 {[%clk 0:03:02.7]} 9. a4 {[%clk 0:02:51.5]} 9... b6 {[%clk 0:03:02.7]}
10. h3 {[%clk 0:02:47.6]} 10... a6 {[%clk 0:03:03.6]} 11. e4 {[%clk 0:02:46.4]}
11... Ne8 {[%clk 0:03:03.4]} 12. Qd3 {[%clk 0:02:44.1]} 12... Nc7 {[%clk
0:03:04]} 13. Bf4 {[%clk 0:02:39.7]} 13... b5 {[%clk 0:03:02.8]} 14. axb5 {[%clk
0:02:38.9]} 14... axb5 {[%clk 0:03:02.8]} 15. cxb5 {[%clk 0:02:33.5]} 15... Nf6
{[%clk 0:03:02.6]} 16. Rad1 {[%clk 0:02:18.2]} 16... Bd7 {[%clk 0:03:01.7]} 17.
e5 {[%clk 0:02:15]} 17... Nfe8 {[%clk 0:02:50.7]} 18. e6 {[%clk 0:02:05.2]}
18... fxe6 {[%clk 0:02:49.3]} 19. dxe6 {[%clk 0:02:05]} 19... Bxb5 {[%clk
0:01:40.6]} 20. Nxb5 {[%clk 0:02:01.8]} 20... Nxb5 {[%clk 0:01:37.6]} 21. Ng5
{[%clk 0:01:57.5]} 21... Nd4 {[%clk 0:01:34.3]} 22. Nf7 {[%clk 0:01:56.6]} 22...
Qc8 {[%clk 0:01:31.4]} 23. Bd5 {[%clk 0:01:52.9]} 23... Nc7 {[%clk 0:01:29.5]}
24. Qc4 {[%clk 0:01:36.4]} 24... Rb4 {[%clk 0:01:25]} 25. Qa2 {[%clk 0:01:26.3]}
25... Ne2+ {[%clk 0:01:16.8]} 26. Kh1 {[%clk 0:01:22.4]} 26... Rxb2 {[%clk
0:01:13.2]} 27. Qc4 {[%clk 0:01:21.7]} 27... Nxf4 {[%clk 0:01:12.3]} 28. gxf4
{[%clk 0:01:17.4]} 28... Rb4 {[%clk 0:01:10.7]} 29. Qa2 {[%clk 0:01:16.1]} 29...
Rxf4 {[%clk 0:00:57.9]} 30. Nxd6 {[%clk 0:01:11.6]} 30... Qb8 {[%clk 0:00:49.2]}
31. Nf7 {[%clk 0:01:10.3]} 31... Rd4 {[%clk 0:00:40.5]} 32. Bg2 {[%clk 0:01:07]}
32... Qc8 {[%clk 0:00:25.2]} 33. Rxd4 {[%clk 0:00:57.5]} 33... Bxd4 {[%clk
0:00:26.1]} 34. Bd5 {[%clk 0:00:52.9]} 34... Nxd5 {[%clk 0:00:21.1]} 35. Qxd5
{[%clk 0:00:52.4]} 35... Qa8 {[%clk 0:00:21.7]} 36. Qxa8 {[%clk 0:00:46.7]}
36... Rxa8 {[%clk 0:00:22.6]} 37. f4 {[%clk 0:00:42.1]} 37... Ra2 {[%clk
0:00:20.8]} 38. f5 {[%clk 0:00:41.6]} 38... Kg7 {[%clk 0:00:17.1]} 39. fxg6
{[%clk 0:00:38.2]} 39... hxg6 {[%clk 0:00:16.9]} 40. Nd8 {[%clk 0:00:38.1]}
40... Rf2 {[%clk 0:00:12.7]} 41. Rxf2 {[%clk 0:00:27.3]} 41... Bxf2 {[%clk
0:00:12.6]} 42. Kg2 {[%clk 0:00:27.9]} 42... Bd4 {[%clk 0:00:13]} 43. Kf3 {[%clk
0:00:28]} 43... Kf6 {[%clk 0:00:13.1]} 44. Ke4 {[%clk 0:00:28.4]} 44... Bg1
{[%clk 0:00:12.1]} 45. Kd5 {[%clk 0:00:28.1]} 45... g5 {[%clk 0:00:10.6]} 46.
Nc6 {[%clk 0:00:27.3]} 46... c4 {[%clk 0:00:08.4]} 47. Kxc4 {[%clk 0:00:18.5]}
47... Kxe6 {[%clk 0:00:09.3]} 48. Kd3 {[%clk 0:00:18.2]} 48... Kf6 {[%clk
0:00:08.4]} 49. Ke4 {[%clk 0:00:17.2]} 49... e6 {[%clk 0:00:08.2]} 50. Ne5
{[%clk 0:00:17.1]} 50... Ke7 {[%clk 0:00:04.8]} 51. Nf3 {[%clk 0:00:16.6]} 51...
Bb6 {[%clk 0:00:05.2]} 52. Nxg5 {[%clk 0:00:16.7]} 52... Kf6 {[%clk 0:00:06.1]}
53. Nxe6 {[%clk 0:00:16.7]} 53... Kxe6 {[%clk 0:00:07]} 54. h4 {[%clk
0:00:16.3]} 54... Bd8 {[%clk 0:00:07.9]} 55. h5 {[%clk 0:00:16.7]} 55... Bf6
{[%clk 0:00:08.8]} 56. h6 {[%clk 0:00:17.2]} 56... Kf7 {[%clk 0:00:09.7]} 57. h7
{[%clk 0:00:17.7]} 57... Bh8 {[%clk 0:00:10.6]} 58. Kf5 {[%clk 0:00:17.6]} 58...
Kg7 {[%clk 0:00:11.5]} 59. Kg5 {[%clk 0:00:17.7]} 59... Kxh7 {[%clk 0:00:12.4]}
1/2-1/2

[Event "Early-Titled-Tuesday-Blitz-January-16-2024"]
[Site "Chess.com"]
[Date "2024.01.16"]
[Round "8"]
[White "temiksmozg"]
[Black "Payyappat"]
[Result "1-0"]
[WhiteElo "2622"]
[BlackElo "2445"]
[TimeControl "180+1"]
[EndTime "9:33:24 PST"]
[Termination "temiksmozg won on time"]

1. e4 {[%clk 0:02:48]} 1... c6 {[%clk 0:02:47.4]} 2. Ne2 {[%clk 0:02:41.2]} 2...
d5 {[%clk 0:02:45.6]} 3. e5 {[%clk 0:02:41]} 3... Bf5 {[%clk 0:02:42.9]} 4. Ng3
{[%clk 0:02:39.1]} 4... e6 {[%clk 0:02:40.6]} 5. Nxf5 {[%clk 0:02:38.6]} 5...
exf5 {[%clk 0:02:41.5]} 6. d4 {[%clk 0:02:38.7]} 6... f6 {[%clk 0:02:35.2]} 7.
Bd3 {[%clk 0:02:35.5]} 7... fxe5 {[%clk 0:02:33.9]} 8. dxe5 {[%clk 0:02:36.4]}
8... Bc5 {[%clk 0:02:10.1]} 9. Bxf5 {[%clk 0:02:21.2]} 9... Ne7 {[%clk 0:02:06]}
10. Be6 {[%clk 0:02:09.1]} 10... Ng6 {[%clk 0:01:58]} 11. O-O {[%clk 0:02:07.2]}
11... Qe7 {[%clk 0:01:53.7]} 12. Bf5 {[%clk 0:02:04.7]} 12... O-O {[%clk
0:01:48]} 13. Qh5 {[%clk 0:02:01.9]} 13... Nd7 {[%clk 0:00:40.6]} 14. Bxd7
{[%clk 0:01:41.7]} 14... Qxd7 {[%clk 0:00:39.6]} 15. Nc3 {[%clk 0:01:36.5]}
15... Rf5 {[%clk 0:00:30.3]} 16. Qh3 {[%clk 0:01:34.8]} 16... Raf8 {[%clk
0:00:27.1]} 17. Be3 {[%clk 0:01:33.8]} 17... d4 {[%clk 0:00:24.9]} 18. Ne4
{[%clk 0:01:30.8]} 18... dxe3 {[%clk 0:00:19.2]} 19. Nxc5 {[%clk 0:01:30.8]}
19... Qd5 {[%clk 0:00:14.4]} 20. Nd3 {[%clk 0:01:28.5]} 20... exf2+ {[%clk
0:00:11]} 21. Kh1 {[%clk 0:01:28.5]} 21... Nxe5 {[%clk 0:00:10.7]} 22. Rad1
{[%clk 0:01:12.4]} 22... Nxd3 {[%clk 0:00:09.7]} 23. Qxd3 {[%clk 0:01:10.7]}
23... Qxd3 {[%clk 0:00:09.3]} 24. Rxd3 {[%clk 0:01:11.6]} 24... Re5 {[%clk
0:00:09.3]} 25. g3 {[%clk 0:01:12.1]} 25... Re2 {[%clk 0:00:07.9]} 26. Rc3
{[%clk 0:01:12.1]} 26... Rd8 {[%clk 0:00:07.2]} 27. Kg2 {[%clk 0:01:09.4]} 27...
Rdd2 {[%clk 0:00:07.6]} 28. Rb3 {[%clk 0:01:06.3]} 28... b6 {[%clk 0:00:05.3]}
29. Ra3 {[%clk 0:01:02.8]} 29... Rxc2 {[%clk 0:00:03.4]} 30. Rxa7 {[%clk
0:01:01.7]} 30... Rxb2 {[%clk 0:00:04]} 31. a4 {[%clk 0:00:44.1]} 31... h5
{[%clk 0:00:04.2]} 32. Rc7 {[%clk 0:00:42.3]} 32... c5 {[%clk 0:00:04.1]} 33. a5
{[%clk 0:00:41.3]} 33... bxa5 {[%clk 0:00:05]} 34. Rxc5 {[%clk 0:00:41.4]} 34...
a4 {[%clk 0:00:05.6]} 35. Ra5 {[%clk 0:00:38.1]} 35... Ra2 {[%clk 0:00:05.7]}
36. Rxh5 {[%clk 0:00:37.2]} 36... a3 {[%clk 0:00:05.9]} 37. Ra5 {[%clk
0:00:37.5]} 37... Kf7 {[%clk 0:00:05.5]} 38. Ra6 {[%clk 0:00:36.9]} 38... Ke7
{[%clk 0:00:05.6]} 39. g4 {[%clk 0:00:36.8]} 39... Kd7 {[%clk 0:00:06]} 40. h4
{[%clk 0:00:37.5]} 40... Kc7 {[%clk 0:00:06.4]} 41. h5 {[%clk 0:00:37.7]} 41...
Kb7 {[%clk 0:00:06.9]} 42. Ra4 {[%clk 0:00:36.8]} 42... Kb6 {[%clk 0:00:07.1]}
43. g5 {[%clk 0:00:37.3]} 43... Kb5 {[%clk 0:00:07.3]} 44. Ra8 {[%clk
0:00:37.2]} 44... Re5 {[%clk 0:00:05.4]} 45. Rb1+ {[%clk 0:00:28.8]} 45... Kc5
{[%clk 0:00:02.3]} 46. Ra5+ {[%clk 0:00:28]} 46... Kd4 {[%clk 0:00:02.8]} 47.
Rb4+ {[%clk 0:00:21.7]} 47... Kc3 {[%clk 0:00:02.2]} 48. Rxe5 {[%clk 0:00:22.4]}
48... Kxb4 {[%clk 0:00:02.2]} 49. h6 {[%clk 0:00:23.3]} 49... gxh6 {[%clk
0:00:02.6]} 50. gxh6 {[%clk 0:00:24.2]} 50... Rc2 {[%clk 0:00:02.8]} 51. Re8
{[%clk 0:00:13.9]} 51... a2 {[%clk 0:00:03.2]} 52. Rb8+ {[%clk 0:00:12.7]} 52...
Ka5 {[%clk 0:00:02.6]} 53. h7 {[%clk 0:00:12.4]} 53... Rc6 {[%clk 0:00:01]} 54.
h8=Q {[%clk 0:00:12.2]} 1-0